Cogmind - Beta 16 @@@ ROGUE MODE // 2025.11.24 @ 15:21:05 Player: Mozco Result: Destroyed by G-47 Trooper with Particle Gun Performance ------------- Evolutions (0) 0 Regions Visited (2) 400 Robots Destroyed (21) 105 Value Destroyed (576) 576 Prototype IDs (0) 0 Alien Tech Used (0) 0 Bonus (0) 0 TOTAL SCORE: 1081 Bonus ------- None Cogmind --------- Core Integrity 0/250 Matter 264/300 Energy 125/125 System Corruption 0% Temperature Cool (9) Movement Core (750) Ox14 Location -10/Mines Parts ------- > --- POWER (1) -------- Light Ion Engine > --- PROPULSION (2) --- (None) > --- UTILITY (2) ------ High-capacity Storage Unit Visual Processing Unit > --- WEAPON (2) ------- Light Assault Rifle Light Assault Rifle > --- INVENTORY (20) --- Ion Engine Heat Sink Small Storage Unit Large Storage Unit Huge Storage Unit Small Matter Pod (50) Medium Matter Pod (100) Medium Matter Pod (100) Medium Matter Pod (100) Rocket Launcher Peak State ------------ > --- POWER ------------ Light Nuclear Core > --- PROPULSION ------- Light Treads Light Treads > --- UTILITY ---------- Improved Heat Sink High-capacity Storage Unit > --- WEAPON ----------- EM Pulse Gun Assault Rifle > --- INVENTORY -------- Ion Engine Light Ion Engine Small Storage Unit Large Storage Unit Huge Storage Unit Small Matter Pod Medium Matter Pod Medium Matter Pod Light Assault Rifle Light Assault Rifle [Rating: 12] Favorites ----------- Power Light Nuclear Core Engine Light Ion Engine Power Core Light Nuclear Core Propulsion Light Treads Treads Light Treads Utility High-capacity Storage Unit Device Improved Heat Sink Storage High-capacity Storage Unit Processor Visual Processing Unit Weapon Light Assault Rifle Energy Gun EM Pulse Gun Ballistic Gun Light Assault Rifle Launcher Rocket Launcher Build | -11 -10 -10 ------- Run | Yrd Mat Min Slots Evolved . | . . . Power . | . . . Propulsion . | . . . Utility . | . . . Weapon . | . . . Parts Attached 17 | 8 7 2 Power 3 | 2 1 . Engine 2 | 2 . . Core 1 | . 1 . Reactor . | . . . Propulsion 3 | 2 1 . Treads 3 | 2 1 . Leg . | . . . Wheel . | . . . Hover . | . . . Flight . | . . . Utility 5 | 1 4 . Device 1 | . 1 . Storage 3 | 1 2 . Processor 1 | . 1 . Hackware . | . . . Protection . | . . . Artifact . | . . . Weapon 6 | 3 1 2 Energy Gun 2 | 1 1 . Energy Cannon . | . . . Ballistic Gun 3 | 2 . 1 Ballistic Cannon . | . . . Launcher 1 | . . 1 Special Weapon . | . . . Impact Weapon . | . . . Slashing Weapon . | . . . Piercing Weapon . | . . . Special Melee Weapon . | . . . Unidentified Prototypes . | . . . Parts Lost 7 | . 2 5 Power 1 | . . 1 Propulsion 3 | . . 3 Utility 1 | . 1 . Weapon 2 | . 1 1 Highest Loss Streak 2 | . 2 2 To Critical Strikes . | . . . Average Backups 9 | 1 8 10 Power 1 | . 1 1 Propulsion . | . . . Utility 6 | . 4 8 Weapon 1 | . 1 1 Tool/Special . | . . . Unused Backups 6 | . . 6 Power . | . . . Propulsion . | . . . Utility 6 | . . 6 Weapon . | . . . Tool/Special . | . . . Average Slot Usage (%) 87 | . 97 82 Engine 5 | . 1 7 Core 8 | . 12 6 Treads 16 | . 28 10 Device 2 | . 5 . Storage 14 | . 14 14 Processor 11 | . 6 14 Energy Gun 7 | . 12 5 Ballistic Gun 19 | . 15 21 Peak Build Rating 12 | 6 12 12 Average Rating 9 | 4 10 8 On Entrance 5 | . 6 11 Avg Prop Armor Cover (%) . | . . . Naked Turns . | . . . Heaviest Build 50 | 14 50 50 Greatest Support 40 | 40 40 40 Greatest Overweight (x) 15 | . 1 15 Average Overweight (x) 3 | . . 5 Largest Inventory Capacity 20 | 8 20 20 Average Capacity 18 | 7 17 20 Most Carried 12 | 2 12 12 Average Carried 9 | 1 8 10 Final Capacity 20 | 8 20 20 Final Carried 12 | 2 12 10 Class Distribution -------------------- 100% | Mutant Dominant Class ---------------- Mutant | -10/Materials Mutant | -10/Mines Resources | -11 -10 -10 ----------- Run | Yrd Mat Min Matter Collected 922 | 244 487 191 Remotely . | . . . Salvage Created 914 | . 577 337 Parts 51 | . 31 20 Haulers Intercepted 1 | . 1 . Recyclers Shooed 1 | . 1 . Parts Field Recycled . | . . . Retrieved Matter . | . . . Parts Self-Destructed . | . . . Prevented . | . . . Parts Restored . | . . . Kills | -11 -10 -10 ------- Run | Yrd Mat Min Combat Hostiles Destroyed 19 | . 9 10 Guns 16 | . 9 7 AOE 3 | . . 3 Classes Destroyed 7 | . 6 1 Worker 1 | . 1 . Hauler 1 | . 1 . Recycler 2 | . 2 . Watcher 1 | . 1 . Swarmer 2 | . 2 . Grunt 14 | . 7 7 Assembled 3 | . . 3 Best Kill Streak 5 | . 5 2 Combat Bots Only 4 | . 4 2 Max Kills in Single Turn 2 | . 1 2 Gunslinging . | . . . Exploded 2 | . . 2 Melee . | . . . Uniques/NPCs Destroyed . | . . . Combat | -11 -10 -10 -------- Run | Yrd Mat Min Hostile Shots Fired 117 | . 65 52 Missed 30 | . 17 13 Hits 87 | . 48 39 Projectile 87 | . 48 39 Damage Taken 1144 | . 546 598 Core 254 | . 126 128 Absorbed by Shields . | . . . Core Remaining (%) 100 | 100 . . Volleys Fired 82 | . 43 39 Largest 2 | . 2 2 Hottest 60 | . 60 60 Shots Fired 155 | . 85 70 Gun 148 | . 85 63 Cannon . | . . . Launcher 7 | . . 7 Special . | . . . Kinetic 92 | . 50 42 Thermal . | . . . Explosive 7 | . . 7 Electromagnetic 56 | . 35 21 Robot Hit Streak 11 | . 11 8 Robot Miss Streak 3 | . 3 3 Penetration Max . | . . . Secondary Targets 5 | . 2 3 Max Gunslinging Chain 1 | . 1 1 Shots Hit Robots 101 | . 61 40 Core Hits 45 | . 25 20 Critical Kills . | . . . Critical Parts Destroyed . | . . . Critical Strikes 3 | . 1 2 Corrupt 3 | . 1 2 Melee Attacks . | . . . Impact . | . . . Slashing . | . . . Piercing . | . . . Sneak Attacks . | . . . Combat Hostiles . | . . . Follow-up Attacks . | . . . Damage Inflicted 1363 | . 792 571 Guns 1148 | . 728 420 Cannons . | . . . Explosions 183 | . 41 142 Melee . | . . . Ramming 32 | . 23 9 Kinetic 640 | . 413 227 Thermal 41 | . 41 . Explosive 142 | . . 142 Electromagnetic 508 | . 315 193 Impact . | . . . Slashing . | . . . Piercing . | . . . Highest Corruption . | . . . Average Corruption . | . . . Corruption Purged . | . . . Corruption Blocked . | . . . Overload Shots . | . . . Overflow Damage 11 | . 11 . Projectiles . | . . . Explosions 11 | . 11 . Melee . | . . . Knockbacks . | . . . Impact . | . . . Kinetic . | . . . Secondary . | . . . Self-Inflicted Damage 157 | . 38 119 Shots 6 | . 1 5 Rammed 5 | . 4 1 Targets Rammed 6 | . 5 1 Kicked . | . . . Crushed 1 | . 1 . Highest Temperature 216 | . 69 216 Average Temperature 56 | . 32 67 Received Heat Transfer 498 | . 228 270 Siege Activations . | . . . Martial Activations . | . . . Shielding Activations . | . . . Robots Disrupted . | . . . Combat Hostiles . | . . . Robots Corrupted . | . . . Combat Hostiles . | . . . Parts Fried . | . . . Impact Corruptions . | . . . Robots Melted . | . . . Combat Hostiles . | . . . Parts Melted . | . . . Heat Transferred 50 | . 50 . Parts Sabotaged . | . . . Parts Stolen . | . . . Parts Stripped . | . . . Power Chain Reactions 1 | . 1 . Alert | -11 -10 -10 ------- Run | Yrd Mat Min Maximum Alert Level . | . . . Low Security (%) 100 | 100 100 100 Level 1 . | . . . Level 2 . | . . . Level 3 . | . . . Level 4 . | . . . Level 5 . | . . . High Security . | . . . Max Security . | . . . Peak Influence 109 | . 109 50 Initial . | . . . Average 15 | . 38 3 Influence Increases 520 | . 333 187 Destroy 0b10 Robot/C 320 | . 180 140 Destroy 0b10 Robot/NC 25 | . 25 . Destroy Leader 64 | . 44 20 Successful Hack 5 | . 5 . Select Force Hacks 60 | . 60 . Disable Machine 15 | . 15 . Destroy Structure 31 | . 4 27 Influence Decreases 520 | . 333 187 Time Decay 478 | . 313 165 Lost Part 42 | . 20 22 Squads Dispatched 3 | . 3 . Investigation 2 | . 2 . Extermination . | . . . Reinforcement 1 | . 1 . Assault . | . . . Garrison . | . . . Intercept . | . . . Searches Triggered . | . . . Construction Impeded . | . . . Haulers Reinforced . | . . . Active Scanning Responses . | . . . Cargo Convoy Interrupts . | . . . Stealth | -11 -10 -10 --------- Run | Yrd Mat Min Distress Signals 2 | . 2 . Communications Jammed . | . . . Distress Signals . | . . . Times Spotted 34 | . 22 12 Peak Tracking Total 5 | . 5 2 Tactical Retreats . | . . . Traps | -11 -10 -10 ------- Run | Yrd Mat Min Traps Triggered . | . . . Indirectly . | . . . Trap Hack Attempts . | . . . Triggered . | . . . Disarmed . | . . . Reprogrammed . | . . . Reused . | . . . Traps Extracted . | . . . Installed . | . . . Triggered . | . . . Machines | -11 -10 -10 ---------- Run | Yrd Mat Min Machines Disabled 1 | . 1 . Max in Single Turn 1 | . 1 . Machines Repaired . | . . . Machines Dismantled . | . . . Machines Sabotaged . | . . . Overloaded Fab Kills . | . . . Hacking | -11 -10 -10 --------- Run | Yrd Mat Min Machines Accessed 7 | . 7 . Terminals 4 | . 4 . Fabricators . | . . . Repair Stations 1 | . 1 . Recycling Units 2 | . 2 . Scanalyzers . | . . . Garrison Access . | . . . Total Hacks 13 | . 13 . Successful 8 | . 8 . Failed 4 | . 4 . Catastrophic . | . . . Database Lockouts 1 | . 1 . Manual 10 | . 10 . Terminals 9 | . 9 . Fabricators . | . . . Repair Stations 2 | . 2 . Recycling Units 2 | . 2 . Scanalyzers . | . . . Garrison Access . | . . . Terminal Hacks 4 | . 4 . Part Schematic 1 | . 1 . Robot Analysis 2 | . 2 . Locate Traps 1 | . 1 . Fabricator Hacks . | . . . Repair Station Hacks 1 | . 1 . Scan Component 1 | . 1 . Recycling Unit Hacks . | . . . Scanalyzer . | . . . Garrison Access Hacks . | . . . Unauthorized Hacks 3 | . 3 . Terminals 1 | . 1 . Botnet 1 | . 1 . Fabricators . | . . . Repair Stations . | . . . Recycling Units 2 | . 2 . Tunnel 2 | . 2 . Scanalyzers . | . . . Garrison Access . | . . . Data Cores Recovered . | . . . Used . | . . . Hacking Detections 4 | . 4 . Full Trace Events . | . . . Feedback Events . | . . . Feedback Blocked . | . . . Robot Schematics Acquired . | . . . Robots Built . | . . . Authchips . | . . . Time . | . . . Total Robot Build Rating . | . . . Part Schematics Acquired 1 | . 1 . Parts Built . | . . . Authchips . | . . . Time . | . . . Total Part Build Rating . | . . . Part Studies Acquired . | . . . Parts Repaired . | . . . Time . | . . . Parts Recycled . | . . . Recycled Matter . | . . . Retrieved Matter . | . . . Retrieved Components . | . . . Parts Scanalyzed . | . . . Part Schematics Acquired . | . . . Parts Damaged . | . . . Bothacking | -11 -10 -10 ------------ Run | Yrd Mat Min Used RIF Installer . | . . . Robots Hacked . | . . . Non-combat . | . . . Combat . | . . . Robot Hacks Applied . | . . . Relay Couplers Released . | . . . Fabnet Peak Effective % . | . . . Robots Rewired . | . . . Allies Hacked . | . . . Hacks Repelled . | . . . Allies | -11 -10 -10 -------- Run | Yrd Mat Min Total Allies . | . . . Largest Group . | . . . Highest-Rated Group . | . . . Highest-Rated Ally . | . . . Total Orders . | . . . Ally Attacks . | . . . Total Damage . | . . . Kills . | . . . Allies Corrupted . | . . . Allies Melted . | . . . Intel | -11 -10 -10 ------- Run | Yrd Mat Min Active Infowar (turns) 2161 | . 403 1758 Optics 2161 | . 403 1758 Robot Analysis Total 2 | . 2 . Derelict Logs Recovered 3 | . . 3 Drone Launches . | . . . Drone Recoveries . | . . . Exploration | -11 -10 -10 ------------- Run | Yrd Mat Min Turns Passed 2796 | 112 926 1758 Spaces Moved 809 | 66 348 395 Core 139 | 4 . 135 Treads 670 | 62 348 260 Legs . | . . . Wheels . | . . . Hover . | . . . Flight . | . . . Fastest Speed 50 | 50 160 240 Average Speed 310 | 153 220 416 Slowest Speed 800 | 160 240 800 Overloaded Moves . | . . . Propulsion Burnouts . | . . . Robots Hopped . | . . . Potential Cave-ins . | . . . Cave-ins Triggered . | . . . Exploration Rate (%) 55 | 5 68 93 Regions Visited 2 Branch Regions 1 Pre-discovered Areas 4 | . 2 2 Known Exits Taken . | . . . Unknown Exits Taken 2 | 1 1 . Scrap Searched 1 | . . 1 Spaces Dug 13 | . . 13 Terrain Destroyed 50 | . 2 48 Melee . | . . . Projectile . | . . . AOE 50 | . 2 48 Terrain Rammed . | . . . Walls Destroyed . | . . . Machines Disabled . | . . . Actions | -11 -10 -10 --------- Run | Yrd Mat Min Total 934 | 73 415 446 Wait 9 | . 4 5 Move 807 | 65 347 395 Hop . | . . . Pick Up 8 | . 7 1 Fast Attach 9 | 6 3 . Attach 4 | . 1 3 Detach . | . . . Swap 8 | 2 4 2 Drop 1 | . 1 . Fire 82 | . 43 39 Melee . | . . . Ram . | . . . Kick . | . . . Crush 6 | . 5 1 Escape Stasis . | . . . Rewire . | . . . Trap . | . . . Miscellaneous . | . . . Route ------- -11/Scrapyard -10/Materials (discovered 3 exits: [*Mat x2] / [*Min]) -10/Mines (discovered 2 exits: [*Mat] / [*Sub]) History --------- Turn | Location | Event 5 | -11/Scrapyard | Discovered new exit (range 16) 113 | -11/Scrapyard | Entered Materials 301 | -10/Materials | Build established: Mutant 348 | -10/Materials | Discovered new exit (range 12) 388 | -10/Materials | Central database locked down 469 | -10/Materials | Discovered new exit (range 13) 606 | -10/Materials | Core integrity fell below 50% 1005 | -10/Materials | Discovered new exit (range 8) 1039 | -10/Materials | Entered Mines 1057 | -10/Mines | Met a Derelict bent on vengeance 1220 | -10/Mines | Learned location of 1 exit from Materials 1394 | -10/Mines | Learned location of Zion (-7) 1449 | -10/Mines | Received a Rocket Launcher from a helpful Derelict 1467 | -10/Mines | Discovered new exit (range 11) 1592 | -10/Mines | Excavation squad dispatched 1592 | -10/Mines | A large section of the Mines collapsed 1731 | -10/Mines | Core integrity fell below 20% 1914 | -10/Mines | Discovered new exit (range 6) 2797 | -10/Mines | Destroyed by G-47 Trooper with Particle Gun Last Messages --------------- 01831_ U-05 Engineer lays Concrete. 01832_ U-05 Engineer builds a Wall. 01834_ T-07 Excavator is excavating. 01836_ U-05 Engineer builds a Wall. 01839_ U-05 Engineer lays Concrete. 01840_ U-05 Engineer builds a Wall. 01848_ U-05 Engineer builds a Door. 01864_ EM Pulse Gun destroyed. 01877_ G-47 Trooper destroyed. 01877_ Switching to secondary target: G-34 Mercenary. 01888_ Lgt. Nuclear Core destroyed. 01888_ G-34 Mercenary destroyed. 01906_ Acquired derelict log, extracted data. World map confirmed: -7/Zion. 01914_ EXIT=FOUND 01980_ K-01 Serf collects debris. 02465_ K-01 Serf cleans the Seismic Survey Station. 02487_ K-01 Serf collects debris. 02521_ K-01 Serf cleans the Seismic Survey Station. 02526_ K-01 Serf collects debris. Map ----- +----------------------------------------------------+ | ??????????#### ###????# #### # ## ###? | | ??????????????###??????# # % ### ## | | ??????????????????????## # ## # | | ##????????######???### # # ### | | ##??????## ##### # # #?# | | #?????## # ##?## | | #???### [ # # # #???#### | | ##?##* * = ########??????## | | ###%= [%= #### ##??????????????# | | !=*[% ##= ##### ###??????????????# ### | | [%= #### ##???# #????????????????# ##?### | | #### %= ##?####????# #????????????????# #????? | | #??## % ##????????# #????????????????# ##???? | | #??## #????????# #???????????????## #???? | | #### #????????# #???????????????# #???? | | #????????# #???????????????# #???? | | ###????????# #???????????????# ##???? | | ###??????????# #???????????????## #????? | | # # ############?# #????????????????## ##????? | | ##### ### #?????????????????# ##????? | | #???# #?????????????????## ##???# | | #???############ #####??????????????????# ##??# | | #??????????????# #??????????????????????# #### | | #????????####### ###############????????## ## | | #????????# ## #?????????## | | #????????# ##### @ gg #??????????## | | #????????# ##??# ###### #???????????## | | #####???## ##?## #????????????????????## | | #???# ##?## #?????????????????????## | | #?# #??## #??## ##??????????????????????## | | ### #### #???## ##????????????????????????## | | #????####??????????????????????????? | | ###### #??????????????????????????????????? | | #????# #??????????????????????????????????? | | ????## ##??????????????????????????????????? | | ????# #???????????????????????????????????? | | ???# #???????????????????????????????????? | | ???## ### ##???????????????????????????????????? | | ????####?####????????????????????????????????????? | | ?????????????????????????????????????????????????? | | ?????????????????????????????????????????????????? | | | | | | | | | | | | | | | | | | | +----------------------------------------------------+ Best States ------------- Heat Dissipation 39 Energy Generation 14 Energy Capacity 250 Matter Stores 300 Matter Capacity 300 Sight Range 18 Terrain Scan Density 10 Evasion (%) 40 Recoil Reduction 2 Item Schematics ----------------- Huge Storage Unit | -10/Materials | Hacked Robot Schematics ------------------ None Fabricated ------------ Nothing Repaired ---------- Nothing Studied --------- None Alien Tech Used ----------------- None Achievements -------------- None Challenges ------------ None Game ------ Seed DerelictFireLaser Manual? 0 Play Time 00:11:20 Cumulative 327.9 hours Start 2025.11.24 @ 15:12:01 End 2025.11.24 @ 15:21:05 Sessions 1 Manual Loads 0 Difficulty Rogue Special Mode None Game No. 344 Rogue 340 Adventurer 3 Explorer 1 Win Type - Total 2 Types 2/0/0/0/0/0/0/0/0/0 Lore% 82 Gallery% 78 Achievement% 63 Wizard Run 0 Options --------- Layout 0 ASCII 0 Keyboard 0 Movement Mouse Keybinds 0 Fullscreen 2 Font 18/SmallcapsGlow Map View 76x50 Zoom Use 0% Tactical HUD 1 Map Filters NONE Filters NONE Steam 1 RUN: 13377423-1bf8-40b4-ab5b-c486d3283462